fUST/lending_fUST_20250408
["ID","MTS","AMOUNT","RATE_DAILY","PERIOD"]
[357428775,1744063901487,-500.0,0.00023835,2]
[357428776,1744063901768,-500.0,0.00023835,2]
[357428777,1744063901779,-683.72,0.00023835,2]
[357428778,1744063901788,-927.22,0.00023835,2]
[357428779,1744063901798,-500.0,0.00023835,2]
[357428780,1744063901808,-2388.74,0.00023835,2]
[357428781,1744063901818,-500.0,0.00023835,2]
[357428782,1744063901827,-500.0,0.00023835,2]
[357428783,1744063901836,-500.0,0.00023835,2]
[357428784,1744063901846,-500.0,0.00023835,2]
[357428785,1744063901856,-5151.25,0.00023835,2]
[357428786,1744063901867,-286.56531928,0.00023835,2]
[357428787,1744063901877,-500.0,0.00023835,2]
[357428788,1744063901887,-587.17693416,0.00023835,2]
[357428789,1744063901898,-500.0,0.00023835,2]
[357428790,1744063901908,-500.0,0.00023835,2]
[357428791,1744063901918,-500.0,0.00023835,2]
[357428792,1744063901928,-641.09,0.00023835,2]
[357428793,1744063901938,-500.0,0.00023835,2]
[357428794,1744063901949,-500.0,0.00023835,2]
[357428795,1744063901959,-500.0,0.00023835,2]
[357428796,1744063901969,-1515.42,0.00023835,2]
[357428797,1744063901979,-500.0,0.00023835,2]
[357428798,1744063901989,-545.85568489,0.00023835,2]
[357428799,1744063902000,-1223.9,0.00023835,2]
[357428800,1744063902010,-972.05,0.00023835,2]
[357428801,1744063902020,-500.0,0.00023835,2]
[357428802,1744063902031,-500.0,0.00023835,2]
[357428803,1744063902041,-1029.9,0.00023835,2]
[357428804,1744063902051,-710.69,0.00023835,2]
[357428805,1744063902061,-500.0,0.00023835,2]
[357428806,1744063902071,-514.93,0.00023835,2]
[357428807,1744063902081,-500.0,0.00023835,2]
[357428808,1744063902090,-500.0,0.00023835,2]
[357428809,1744063902100,-500.0,0.00023835,2]
[357428810,1744063902110,-500.0,0.00023835,2]
[357428811,1744063902120,-630.65,0.00023835,2]
[357428812,1744063902129,-500.0,0.00023835,2]
[357428813,1744063902140,-500.0,0.00023835,2]
[357428814,1744063902150,-500.0,0.00023835,2]
[357428815,1744063902160,-500.0,0.00023835,2]
[357428816,1744063902170,-1716.22,0.00023835,2]
[357428817,1744063902180,-601.19,0.00023835,2]
[357428818,1744063902190,-500.0,0.00023835,2]
[357428819,1744063902200,-1677.61,0.00023835,2]
[357428820,1744063902209,-500.0,0.00023835,2]
[357428821,1744063902220,-526.01,0.00023835,2]
[357428822,1744063902232,-1206.67,0.00023835,2]
[357428823,1744063902242,-500.0,0.00023835,2]
[357428824,1744063902252,-500.0,0.00023835,2]
[357428825,1744063902265,-500.0,0.00023835,2]
[357428826,1744063902276,-500.0,0.00023835,2]
[357428827,1744063902286,-200.0,0.00023835,2]
[357428828,1744063902296,-631.76,0.00023835,2]
[357428829,1744063902307,-1866.81,0.00023835,2]
[357428830,1744063902318,-500.0,0.00023835,2]
[357428831,1744063902328,-876.5,0.00023835,2]
[357428832,1744063902338,-500.0,0.00023835,2]
[357428833,1744063902348,-711.58,0.00023835,2]
[357428834,1744063902358,-775.52,0.00023835,2]
[357428835,1744063902368,-731.46,0.00023835,2]
[357428836,1744063902378,-500.0,0.00023835,2]
[357428837,1744063902387,-500.0,0.00023835,2]
[357428838,1744063902397,-536.33187599,0.00023835,2]
[357428839,1744063902407,-578.19,0.00023835,2]
[357428840,1744063902416,-1407.84,0.00023835,2]
[357428841,1744063902425,-500.0,0.00023835,2]
[357428842,1744063902435,-500.0,0.00023835,2]
[357428843,1744063902444,-500.0,0.00023835,2]
[357428844,1744063902453,-309.10790037,0.00023835,2]
[357428845,1744063902463,-500.0,0.00023835,2]
[357428846,1744063902472,-500.0,0.00023835,2]
[357428847,1744063902482,-673.31,0.00023835,2]
[357428848,1744063902492,-860.82,0.00023835,2]
[357428849,1744063902501,-500.0,0.00023835,2]
[357428850,1744063902511,-584.63,0.00023835,2]
[357428851,1744063902522,-500.0,0.00023835,2]
[357428852,1744063902532,-556.73044975,0.00023835,2]
[357428853,1744063902541,-875.61,0.00023835,2]
[357428854,1744063902551,-500.0,0.00023835,2]
[357428855,1744063902561,-500.0,0.00023835,2]
[357428856,1744063902571,-501.31,0.00023835,2]
[357428857,1744063902581,-500.0,0.00023835,2]
[357428858,1744063902592,-500.0,0.00023835,2]
[357428859,1744063902609,-1137.86,0.00023835,2]
[357428860,1744063902619,-724.96,0.00023835,2]
[357428861,1744063902629,-500.0,0.00023835,2]
[357428862,1744063902639,-560.96,0.00023835,2]
[357428863,1744063902649,-506.77991203,0.00023835,2]
[357428864,1744063902659,-1851.71,0.00023835,2]
[357428865,1744063902668,-500.0,0.00023835,2]
[357428866,1744063902678,-338.52599073,0.00023835,2]
[357428867,1744063902688,-500.0,0.00023835,2]
[357428868,1744063902698,-500.0,0.00023835,2]
[357428869,1744063902709,-992.11,0.00023835,2]
[357428870,1744063902723,-1076.39,0.00023835,2]
[357428871,1744063902733,-616.93,0.00023835,2]
[357428872,1744063902743,-500.0,0.00023835,2]
[357428873,1744063902752,-500.0,0.00023835,2]
[357428874,1744063902762,-2026.48,0.00023835,2]
[357428875,1744063902772,-500.0,0.00023835,2]
[357428876,1744063902781,-500.0,0.00023835,2]
[357428877,1744063902791,-953.83,0.00023835,2]
[357428878,1744063902801,-500.0,0.00023835,2]
[357428879,1744063902811,-500.0,0.00023835,2]
[357428880,1744063902821,-500.0,0.00023835,2]
[357428881,1744063902830,-2969.41,0.00023835,2]
[357428882,1744063902840,-1097.58,0.00023835,2]
[357428883,1744063902850,-519.65,0.00023835,2]
[357428884,1744063902860,-500.0,0.00023835,2]
[357428885,1744063902871,-2444.99,0.00023835,2]
[357428886,1744063902881,-500.0,0.00023835,2]
[357428887,1744063902891,-976.7,0.00023835,2]
[357428888,1744063902901,-500.0,0.00023835,2]
[357428889,1744063902911,-500.0,0.00023835,2]
[357428890,1744063902921,-1051.44,0.00023835,2]
[357428891,1744063902931,-500.0,0.00023835,2]
[357428892,1744063902940,-540.47,0.00023835,2]
[357428893,1744063902951,-543.21,0.00023835,2]
[357428894,1744063902960,-668.11,0.00023835,2]
[357428895,1744063902971,-853.08,0.00023835,2]
[357428896,1744063902981,-1262.71,0.00023835,2]
[357428897,1744063902991,-620.29453811,0.00023835,2]
[357428898,1744063903001,-500.0,0.00023835,2]
[357428899,1744063903011,-2569.27,0.00023835,2]
[357428900,1744063903021,-500.0,0.00023835,2]
[357428901,1744063903031,-1733.23,0.00023835,2]
[357428902,1744063903041,-893.36,0.00023835,2]
[357428903,1744063903051,-2016.49,0.00023835,2]
[357428904,1744063903061,-500.0,0.00023835,2]
[357428905,1744063903071,-1152.06,0.00023835,2]
[357428906,1744063903081,-500.0,0.00023835,2]
[357428907,1744063903091,-552.64,0.00023835,2]
[357428908,1744063903101,-18581.5,0.00023835,2]
[357428909,1744063903111,-500.0,0.00023835,2]
[357428910,1744063903121,-2267.89,0.00023835,2]
[357428911,1744063903131,-4269.8,0.00023835,2]
[357428912,1744063903142,-500.0,0.00023835,2]
[357428913,1744063903152,-1821.78,0.00023835,2]
[357428914,1744063903162,-703.14,0.00023835,2]
[357428915,1744063903183,-998.23,0.00023835,2]
[357428916,1744063903196,-2845.59,0.00023835,2]
[357428917,1744063903207,-544.04,0.00023835,2]
[357428918,1744063903217,-239.37004239,0.00023835,2]
[357428919,1744063903229,-500.0,0.00023835,2]
[357428920,1744063903240,-3675.16,0.00023835,2]
[357428921,1744063903249,-925.05,0.00023835,2]
[357428922,1744063903259,-500.0,0.00023835,2]
[357428923,1744063903270,-340.46402102,0.00023835,2]
[357428924,1744063903282,-500.0,0.00023835,2]
[357428925,1744063903292,-500.0,0.00023835,2]
[357428926,1744063903305,-500.0,0.00023835,2]
[357428927,1744063903319,-500.0,0.00023835,2]
[357428928,1744063903329,-500.0,0.00023835,2]
[357428929,1744063903339,-1424.89,0.00023835,2]
[357428930,1744063903349,-500.0,0.00023835,2]
[357428931,1744063903359,-435.47421213,0.00023835,2]
[357428932,1744063903369,-665.06,0.00023835,2]
[357428933,1744063903380,-500.0,0.00023835,2]
[357428934,1744063903390,-500.0,0.00023835,2]
[357428935,1744063903400,-500.0,0.00023835,2]
[357428936,1744063903410,-545.95,0.00023835,2]
[357428937,1744063903420,-500.0,0.00023835,2]
[357428938,1744063903430,-500.0,0.00023835,2]
[357428939,1744063903440,-500.0,0.00023835,2]
[357428940,1744063903450,-500.0,0.00023835,2]
[357428941,1744063903460,-2391.05,0.00023835,2]
[357428942,1744063903470,-1497.52,0.00023835,2]
[357428943,1744063903480,-500.0,0.00023835,2]
[357428944,1744063903490,-1082.74,0.00023835,2]
[357428945,1744063903501,-500.0,0.00023835,2]
[357428946,1744063903510,-651.9,0.00023835,2]
[357428947,1744063903520,-2766.76,0.00023835,2]
[357428948,1744063903530,-895.7,0.00023835,2]
[357428949,1744063903541,-572.77,0.00023835,2]
[357428950,1744063903551,-2482.06,0.00023835,2]
[357428951,1744063903561,-967.61,0.00023835,2]
[357428952,1744063903572,-1151.37,0.00023835,2]
[357428953,1744063903581,-2726.63,0.00023835,2]
[357428954,1744063903592,-646.66,0.00023835,2]
[357428955,1744063903603,-500.0,0.00023835,2]
[357428956,1744063903613,-500.0,0.00023835,2]
[357428957,1744063903623,-6139.74,0.00023835,2]
[357428958,1744063903633,-500.0,0.00023835,2]
[357428959,1744063903643,-4219.24,0.00023835,2]
[357428960,1744063903652,-629.38,0.00023835,2]
[357428961,1744063903662,-4760.8,0.00023835,2]
[357428962,1744063903672,-500.0,0.00023835,2]
[357428963,1744063903681,-500.0,0.00023835,2]
[357428964,1744063903691,-4549.61,0.00023835,2]
[357428965,1744063903701,-500.0,0.00023835,2]
[357428966,1744063903712,-500.0,0.00023835,2]
[357428967,1744063903722,-724.07,0.00023835,2]
[357428968,1744063903733,-11557.25,0.00023835,2]
[357428969,1744063903743,-320.00625883,0.00023835,2]
[357428970,1744063903753,-2661.52,0.00023835,2]
[357428971,1744063903763,-500.0,0.00023835,2]
[357428972,1744063903774,-500.0,0.00023835,2]
[357428973,1744063903784,-500.0,0.00023835,2]
[357428974,1744063903794,-3398.84,0.00023835,2]
[357428975,1744063903809,-500.0,0.00023835,2]
[357428976,1744063903819,-500.0,0.00023835,2]
[357428977,1744063903830,-500.0,0.00023835,2]
[357428978,1744063903839,-618.39,0.00023835,2]
[357428979,1744063903849,-500.0,0.00023835,2]
[357428980,1744063903859,-476.99136356,0.00023835,2]
[357428981,1744063903870,-500.0,0.00023835,2]
[357428982,1744063903880,-569.1,0.00023835,2]
[357428983,1744063903890,-2313.7,0.00023835,2]
[357428984,1744063903901,-745.72,0.00023835,2]
[357428985,1744063903911,-500.0,0.00023835,2]
[357428986,1744063903921,-590.97,0.00023835,2]
[357428987,1744063903933,-3056.09,0.00023835,2]
[357428988,1744063903942,-500.0,0.00023835,2]
[357428989,1744063903953,-500.0,0.00023835,2]
[357428990,1744063903962,-593.05974214,0.00023835,2]
[357428991,1744063903973,-3478.82,0.00023835,2]
[357428992,1744063903983,-500.0,0.00023835,2]
[357428993,1744063903993,-819.56,0.00023835,2]
[357428994,1744063904004,-500.0,0.00023835,2]
[357428995,1744063904014,-1068.57,0.00023835,2]
[357428996,1744063904025,-500.0,0.00023835,2]
[357428997,1744063904035,-621.56,0.00023835,2]
[357428998,1744063904045,-500.0,0.00023835,2]
[357428999,1744063904055,-3744.49,0.00023835,2]
[357429000,1744063904066,-500.0,0.00023835,2]
[357429001,1744063904077,-3303.4,0.00023835,2]
[357429002,1744063904089,-872.78,0.00023835,2]
[357429003,1744063904099,-500.0,0.00023835,2]
[357429004,1744063904109,-500.0,0.00023835,2]
[357429005,1744063904119,-500.0,0.00023835,2]
[357429006,1744063904130,-500.0,0.00023835,2]
[357429007,1744063904141,-6566.66,0.00023835,2]
[357429008,1744063904151,-591.38,0.00023835,2]
[357429009,1744063904161,-500.0,0.00023835,2]
[357429010,1744063904171,-3728.64,0.00023835,2]
[357429011,1744063904181,-4428.79,0.00023835,2]
[357429012,1744063904192,-615.78,0.00023835,2]
[357429013,1744063904202,-1390.87,0.00023835,2]
[357429014,1744063904212,-500.0,0.00023835,2]
[357429015,1744063904222,-890.23,0.00023835,2]
[357429016,1744063904237,-2219.7,0.00023835,2]
[357429017,1744063904247,-500.0,0.00023835,2]
[357429018,1744063904257,-500.0,0.00023835,2]
[357429019,1744063904269,-2090.85,0.00023835,2]
[357429020,1744063904280,-711.92,0.00023835,2]
[357429021,1744063904290,-500.0,0.00023835,2]
[357429022,1744063904300,-532.36,0.00023835,2]
[357429023,1744063904312,-1187.74,0.00023835,2]
[357429024,1744063904323,-500.0,0.00023835,2]
[357429025,1744063904334,-500.0,0.00023835,2]
[357429026,1744063904344,-500.0,0.00023835,2]
[357429027,1744063904354,-500.0,0.00023835,2]
[357429028,1744063904365,-1604.89,0.00023835,2]
[357429029,1744063904375,-615.69298495,0.00023835,2]
[357429030,1744063904385,-531.62,0.00023835,2]
[357429031,1744063904394,-912.89,0.00023835,2]
[357429032,1744063904404,-500.0,0.00023835,2]
[357429033,1744063904415,-645.68,0.00023835,2]
[357429034,1744063904425,-500.0,0.00023835,2]
[357429035,1744063904436,-500.0,0.00023835,2]
[357429036,1744063904447,-1967.09,0.00023835,2]
[357429037,1744063904458,-1296.77,0.00023835,2]
[357429038,1744063904469,-932.59,0.00023835,2]
[357429039,1744063904479,-500.0,0.00023835,2]
[357429040,1744063904489,-500.0,0.00023835,2]
[357429041,1744063904500,-2553.91,0.00023835,2]
[357429042,1744063904510,-883.78,0.00023835,2]
[357429043,1744063904520,-500.0,0.00023835,2]
[357429044,1744063904530,-1780.77,0.00023835,2]
[357429045,1744063904541,-1311.59,0.00023835,2]
[357429046,1744063904551,-601.41,0.00023835,2]
[357429047,1744063904561,-569.95388848,0.00023835,2]
[357429048,1744063904571,-2372.83,0.00023835,2]
[357429049,1744063904581,-882.05,0.00023835,2]
[357429050,1744063904590,-500.0,0.00023835,2]
[357429051,1744063904601,-2990.05,0.00023835,2]
[357429052,1744063904610,-804.44,0.00023835,2]
[357429053,1744063904620,-778.69,0.00023835,2]
[357429054,1744063904629,-1614.29,0.00023835,2]
[357429055,1744063904639,-500.0,0.00023835,2]
[357429056,1744063904649,-534.61,0.00023835,2]
[357429057,1744063904659,-537.59,0.00023835,2]
[357429058,1744063904669,-500.0,0.00023835,2]
[357429059,1744063904679,-1541.32,0.00023835,2]
[357429060,1744063904689,-500.0,0.00023835,2]
[357429061,1744063904699,-3033.88,0.00023835,2]
[357429062,1744063904708,-500.0,0.00023835,2]
[357429063,1744063904719,-500.0,0.00023835,2]
[357429064,1744063904729,-240.6065996,0.00023835,2]
[357429065,1744063904739,-549.68,0.00023835,2]
[357429066,1744063904748,-174.956538,0.0002397,2]
[357429067,1744063904758,-156.772443,0.0002397,2]
[357429068,1744063904769,-77005.49234198,0.00024,2]
[357429069,1744063904781,-419.36665037,0.00024,7]
[357429070,1744063904790,-160.0,0.00024,7]
[357429071,1744063904802,-1966.057026,0.00024064,2]
[357429072,1744063904812,-546.17088401,0.00024109,2]
[357429073,1744063904821,-826.9,0.00024109,2]
[357429074,1744063904831,-500.0,0.00024109,2]
[357429075,1744063904841,-500.0,0.00024109,2]
[357429076,1744063904850,-500.0,0.00024109,2]
[357429077,1744063904860,-520.01376323,0.00024109,2]
[357429078,1744063904870,-393.01277838,0.00024109,2]
[357429079,1744063904879,-458.29105004,0.00024109,2]
[357429080,1744063904889,-500.0,0.00024109,2]
[357429081,1744063904900,-1072.12,0.00024109,2]
[357429082,1744063904909,-500.0,0.00024109,2]
[357429083,1744063904920,-500.0,0.00024109,2]
[357429084,1744063904930,-624.60657616,0.00024109,2]
[357429085,1744063904939,-500.0,0.00024109,2]
[357429086,1744063904949,-500.0,0.00024109,2]
[357429087,1744063904959,-500.0,0.00024109,2]
[357429088,1744063904969,-374.12690378,0.00024109,2]
[357429089,1744063904979,-500.0,0.00024109,2]
[357429090,1744063904989,-637.37,0.00024109,2]
[357429091,1744063904999,-500.0,0.00024109,2]
[357429092,1744063905009,-604.10522342,0.00024109,2]
[357429093,1744063905020,-795.37,0.00024109,2]
[357429094,1744063905030,-500.0,0.00024109,2]
[357429095,1744063905040,-681.95,0.00024109,2]
[357429096,1744063905050,-500.0,0.00024109,2]
[357429097,1744063905061,-701.4,0.00024109,2]
[357429098,1744063905070,-500.0,0.00024109,2]
[357429099,1744063905080,-500.0,0.00024109,2]
[357429100,1744063905090,-500.0,0.00024109,2]
[357429101,1744063905100,-500.0,0.00024109,2]
[357429102,1744063905110,-605.63,0.00024109,2]
[357429103,1744063905120,-635.58,0.00024109,2]
[357429104,1744063905131,-500.0,0.00024109,2]
[357429105,1744063905141,-618.83,0.00024109,2]
[357429106,1744063905152,-1319.58,0.00024109,2]
[357429107,1744063905163,-500.0,0.00024109,2]
[357429108,1744063905173,-586.14,0.00024109,2]
[357429109,1744063905183,-965.15,0.00024109,2]
[357429110,1744063905431,-500.0,0.00024109,2]
[357429111,1744063905441,-500.0,0.00024109,2]
[357429112,1744063905452,-1172.04,0.00024109,2]
[357429113,1744063905463,-500.0,0.00024109,2]
[357429114,1744063905473,-500.0,0.00024109,2]
[357429115,1744063905483,-509.93,0.00024109,2]
[357429116,1744063905493,-1010.05,0.00024109,2]
[357429117,1744063905502,-647.31,0.00024109,2]
[357429118,1744063905512,-500.0,0.00024109,2]
[357429119,1744063905522,-500.0,0.00024109,2]
[357429120,1744063905532,-683.72,0.00024109,2]
[357429121,1744063905542,-927.22,0.00024109,2]
[357429122,1744063905552,-500.0,0.00024109,2]
[357429123,1744063905562,-2388.74,0.00024109,2]
[357429124,1744063905573,-500.0,0.00024109,2]
[357429125,1744063905583,-500.0,0.00024109,2]
[357429126,1744063905593,-526.45931698,0.00024109,2]
[357429127,1744063905603,-500.0,0.00024109,2]
[357429128,1744063905613,-5151.25,0.00024109,2]
[357429129,1744063905624,-500.0,0.00024109,2]
[357429130,1744063905634,-500.0,0.00024109,2]
[357429131,1744063905644,-500.0,0.00024109,2]
[357429132,1744063905655,-256.76,0.00024109,2]
[357429133,1744063905664,-641.09,0.00024109,2]
[357429134,1744063905675,-500.0,0.00024109,2]
[357429135,1744063905685,-500.0,0.00024109,2]
[357429136,1744063905695,-500.0,0.00024109,2]
[357429137,1744063905704,-1515.42,0.00024109,2]
[357429138,1744063905714,-500.0,0.00024109,2]
[357429139,1744063905725,-1223.9,0.00024109,2]
[357429140,1744063905735,-972.05,0.00024109,2]
[357429141,1744063905744,-500.0,0.00024109,2]
[357429142,1744063905753,-500.0,0.00024109,2]
[357429143,1744063905763,-1029.9,0.00024109,2]
[357429144,1744063905773,-710.69,0.00024109,2]
[357429145,1744063905782,-500.0,0.00024109,2]
[357429146,1744063905792,-514.93,0.00024109,2]
[357429147,1744063905802,-500.0,0.00024109,2]
[357429148,1744063905812,-500.0,0.00024109,2]
[357429149,1744063905822,-500.0,0.00024109,2]
[357429150,1744063905832,-500.0,0.00024109,2]
[357429151,1744063905842,-500.0,0.00024109,2]
[357429152,1744063905852,-500.0,0.00024109,2]
[357429153,1744063905862,-500.0,0.00024109,2]
[357429154,1744063905872,-500.0,0.00024109,2]
[357429155,1744063905881,-500.0,0.00024109,2]
[357429156,1744063905891,-291.25,0.00024109,2]
[357429157,1744063905900,-500.0,0.00024109,2]
[357429158,1744063905910,-500.0,0.00024109,2]
[357429159,1744063905919,-500.0,0.00024109,2]
[357429160,1744063905929,-630.65,0.00024109,2]
[357429161,1744063905938,-500.0,0.00024109,2]
[357429162,1744063905948,-500.0,0.00024109,2]
[357429163,1744063905957,-500.0,0.00024109,2]
[357429164,1744063905967,-500.0,0.00024109,2]
[357429165,1744063905976,-1716.22,0.00024109,2]
[357429166,1744063905985,-601.19,0.00024109,2]
[357429167,1744063905995,-565.63771376,0.00024109,2]
[357429168,1744063906004,-1677.61,0.00024109,2]
[357429169,1744063906014,-500.0,0.00024109,2]
[357429170,1744063906023,-526.01,0.00024109,2]
[357429171,1744063906033,-1206.67,0.00024109,2]
[357429172,1744063906042,-500.0,0.00024109,2]
[357429173,1744063906051,-500.0,0.00024109,2]
[357429174,1744063906060,-500.0,0.00024109,2]
[357429175,1744063906070,-500.0,0.00024109,2]
[357429176,1744063906079,-200.0,0.00024109,2]
[357429177,1744063906089,-631.76,0.00024109,2]
[357429178,1744063906099,-1866.81,0.00024109,2]
[357429179,1744063906108,-357.24615989,0.00024109,2]
[357429180,1744063906117,-876.5,0.00024109,2]
[357429181,1744063906127,-500.0,0.00024109,2]
[357429182,1744063906137,-711.58,0.00024109,2]
[357429183,1744063906148,-775.52,0.00024109,2]
[357429184,1744063906158,-731.46,0.00024109,2]
[357429185,1744063906168,-525.15064132,0.00024109,2]
[357429186,1744063906177,-500.0,0.00024109,2]
[357429187,1744063906186,-578.19,0.00024109,2]
[357429188,1744063906196,-1407.84,0.00024109,2]
[357429189,1744063906206,-500.0,0.00024109,2]
[357429190,1744063906215,-500.0,0.00024109,2]
[357429191,1744063906226,-502.32,0.00024109,2]
[357429192,1744063906237,-500.0,0.00024109,2]
[357429193,1744063906246,-231.83862779,0.00024109,2]
[357429194,1744063906256,-673.31,0.00024109,2]
[357429195,1744063906266,-860.82,0.00024109,2]
[357429196,1744063906277,-500.0,0.00024109,2]
[357429197,1744063906287,-584.63,0.00024109,2]
[357429198,1744063906296,-500.0,0.00024109,2]
[357429199,1744063906306,-875.61,0.00024109,2]
[357429200,1744063906315,-500.0,0.00024109,2]
[357429201,1744063906325,-500.0,0.00024109,2]
[357429202,1744063906334,-501.31,0.00024109,2]
[357429203,1744063906344,-500.0,0.00024109,2]
[357429204,1744063906354,-500.0,0.00024109,2]
[357429205,1744063906363,-1137.86,0.00024109,2]
[357429206,1744063906372,-724.96,0.00024109,2]
[357429207,1744063906381,-500.0,0.00024109,2]
[357429208,1744063906391,-560.96,0.00024109,2]
[357429209,1744063906401,-1851.71,0.00024109,2]
[357429210,1744063906410,-500.0,0.00024109,2]
[357429211,1744063906419,-500.0,0.00024109,2]
[357429212,1744063906430,-500.0,0.00024109,2]
[357429213,1744063906440,-992.11,0.00024109,2]
[357429214,1744063906449,-1076.39,0.00024109,2]
[357429215,1744063906459,-616.93,0.00024109,2]
[357429216,1744063906468,-500.0,0.00024109,2]
[357429217,1744063906477,-500.0,0.00024109,2]
[357429218,1744063906486,-2026.48,0.00024109,2]
[357429219,1744063906495,-636.13103158,0.00024109,2]
[357429220,1744063906504,-522.05537291,0.00024109,2]
[357429221,1744063906513,-953.83,0.00024109,2]
[357429222,1744063906522,-500.0,0.00024109,2]
[357429223,1744063906531,-500.0,0.00024109,2]
[357429224,1744063906541,-500.0,0.00024109,2]
[357429225,1744063906550,-2969.41,0.00024109,2]
[357429226,1744063906559,-1097.58,0.00024109,2]
[357429227,1744063906569,-519.65,0.00024109,2]
[357429228,1744063906578,-500.0,0.00024109,2]
[357429229,1744063906588,-2444.99,0.00024109,2]
[357429230,1744063906598,-500.0,0.00024109,2]
[357429231,1744063906608,-976.7,0.00024109,2]
[357429232,1744063906618,-528.49586602,0.00024109,2]
[357429233,1744063906627,-500.0,0.00024109,2]
[357429234,1744063906637,-1051.44,0.00024109,2]
[357429235,1744063906647,-500.0,0.00024109,2]
[357429236,1744063906656,-540.47,0.00024109,2]
[357429237,1744063906667,-543.21,0.00024109,2]
[357429238,1744063906677,-668.11,0.00024109,2]
[357429239,1744063906687,-853.08,0.00024109,2]
[357429240,1744063906697,-1262.71,0.00024109,2]
[357429241,1744063906707,-2569.27,0.00024109,2]
[357429242,1744063906716,-500.0,0.00024109,2]
[357429243,1744063906727,-1733.23,0.00024109,2]
[357429244,1744063906737,-893.36,0.00024109,2]
[357429245,1744063906746,-2016.49,0.00024109,2]
[357429246,1744063906755,-500.0,0.00024109,2]
[357429247,1744063906765,-1152.06,0.00024109,2]
[357429248,1744063906775,-237.25,0.00024109,2]
[357429249,1744063906784,-552.64,0.00024109,2]
[357429250,1744063906794,-18581.5,0.00024109,2]
[357429251,1744063906804,-500.0,0.00024109,2]
[357429252,1744063906814,-2267.89,0.00024109,2]
[357429253,1744063906824,-4269.8,0.00024109,2]
[357429254,1744063906834,-500.0,0.00024109,2]
[357429255,1744063906843,-1821.78,0.00024109,2]
[357429256,1744063906853,-703.14,0.00024109,2]
[357429257,1744063906863,-998.23,0.00024109,2]
[357429258,1744063906873,-2845.59,0.00024109,2]
[357429259,1744063906882,-500.0,0.00024109,2]
[357429260,1744063906892,-3675.16,0.00024109,2]
[357429261,1744063906901,-925.05,0.00024109,2]
[357429262,1744063906911,-544.04,0.00024109,2]
[357429263,1744063906920,-500.0,0.00024109,2]
[357429264,1744063906930,-500.0,0.00024109,2]
[357429265,1744063906941,-500.0,0.00024109,2]
[357429266,1744063906951,-500.0,0.00024109,2]
[357429267,1744063906960,-500.0,0.00024109,2]
[357429268,1744063906971,-1424.89,0.00024109,2]
[357429269,1744063906980,-500.0,0.00024109,2]
[357429270,1744063906991,-665.06,0.00024109,2]
[357429271,1744063907001,-500.0,0.00024109,2]
[357429272,1744063907011,-500.0,0.00024109,2]
[357429273,1744063907020,-500.0,0.00024109,2]
[357429274,1744063907030,-545.95,0.00024109,2]